{"text_format":"1","workbook":"xlsx","n_sheets":2,"sheets":["ANEXO MULTISEDE","tabla"],"not_rendered":{"charts":0,"images":1,"macros":1,"external_links":0,"defined_names":1,"comments":0,"pivot_tables":0},"unopened":[],"bounds":{"document_bytes":16777216,"sheet_cells":100000,"rows_first":2000,"rows_last":500,"rows_between":2000,"halvings":0,"cell_chars":16384,"cell_head_chars":4096},"cells_cut":0,"cells_raw":0,"read":"whole","date_system":"1900"}

{"sheet":"ANEXO MULTISEDE","index":0,"n_rows":12,"n_cols":14,"rows_kept":12,"cut":false,"hidden":false,"merged":[[9,0,10,2],[9,3,9,13],[10,3,10,6],[10,7,10,10],[10,11,10,13],[0,0,3,12],[1,13,3,13],[5,0,5,13],[6,2,7,13],[8,0,8,13],[4,0,4,13]]}
[]
[]
[]
[]
["COMUNICACIÓN DE REALIZACIÓN DE UNA AUDITORÍA ENERGÉTICA\nANEXO MULTISEDE"]
[]
["Nombre Empresa","NIF"]
[]
[]
["INSTALACIONES AUDITADAS",null,null,"DATOS DEL RESULTADO DE LA AUDITORIA"]
[null,null,null,"Ahorro energético estimado (kwh/año)",null,null,null,"Consumo energético (kWh/año)",null,null,null,"Medidas de mejora propuestas "]
["Nº instalación","Dirección instalación","Localidad","Energía eléctrica","Energía térmica","Transporte","Total","Energía eléctrica","Energía térmica","Transporte","Total","Emisiones de CO2 (ton CO2)","Inversión estimada (euros)","Retorno inversión (años)"]

{"sheet":"tabla","index":1,"n_rows":25,"n_cols":77,"rows_kept":25,"cut":false,"hidden":true,"merged":[[0,59,0,60],[0,61,1,61],[0,62,0,65],[0,66,0,68],[0,0,0,14],[0,15,0,18],[0,21,0,32],[0,34,0,48],[0,49,0,55],[0,58,1,58]]}
["Datos de la persona que realiza la comunicación",null,null,null,null,null,null,null,null,null,null,null,null,null,null,"Datos del Auditor",null,null,null,null,null,"Datos empresa auditada",null,null,null,null,null,null,null,null,null,null,null,null,"Datos del resultado de la auditoria",null,null,null,null,null,null,null,null,null,null,null,null,null,null,"Datos Gobierno de Navarra",null,null,null,null,null,null,"Inspección","Comentarios","Estado comunicación","RAAE",null,"NOTAS","AUDITORIA",null,null,null,"PLAN INSPECCION",null,null,null,null,null,"dd","mm",null,"aaaa","concatenar"]
["Nombre","Primer Apellido","Segundo Apellido","DNI","Nombre Empresa","NIF","Direccion","Comunidad Autonoma","Provincia","Municipio","Codigo Postal","Telefono Contacto","Correo Electronico","Fecha Presentacion","Lugar Presentacion","Nombre Auditor","Primer Apellido Auditor","Segundo Apellido Auditor","DNI (opcional)","Titulacion Auditor","Tipo Auditor (Externo/Interno)","Expediente","Expediente raiz","Solicitar actualizacion","Comentarios actualizacion","Nombre Empresa/Instalacion Auditada","Fecha Auditoria","Ubicaciones multiples (SI/NO) (opcional)","Direccion Instalacion","Comunidad Autonoma","Provincia Instalacion","Municipio Instalacion","Codigo Postal Instalacion","CNAE","Ahorro energetico estimado (kWh/año)","Ahorro energetico estimado En. electrica (kWh/año)","Ahorro energetico estimado En. termica (kWh/año)","Ahorro energetico estimado Transporte (kWh/año)","Consumo Energetico (kWh/año)","Consumo Energetico En. electrica (kWh/año)","Consumo Energetico En. termica (kWh/año)","Consumo Energetico Transporte (kWh/año)","Emisiones CO2 (tCO2 e/año)","Inversion Estimada (euros)","% sobre Consumo Energetico Total (opcional)","Retorno Inversion (años con dos decimales)","Ahorros Energeticos mejoras auditoria previa (kWh/año)","Desglose de mejoras","Tiene un sistema de gestión certificado (SI/NO) (opcional)","Tamaño empresa","Actividad","Tipo auditoría","Fecha auditoría anterior","Instalaciones auditadas","Parte auditada específica","Titulación auditor","Estado inspección","Comentarios",null,"Remisión al Ministerio","Fecha de registro",null,"SOLICITADA","PRESENTADA","FECHA PRESENTACION","NOTAS",2018,2019,null,null,null,null,0,0,{"$error":"#N/A"},0,{"$f":"CONCATENATE(BU2,\"/\",BW2,\"/\",BX2)","v":{"$error":"#N/A"}}]
[null,null,null,null,null,null,null,null,null,null,null,null,null,null,null,null,null,null,null,null,null,null,null,null,null,null,null,null,{"$f":"'ANEXO MULTISEDE'!B13","v":0},null,null,{"$f":"'ANEXO MULTISEDE'!C13","v":0},null,null,{"$f":"'ANEXO MULTISEDE'!G13","v":0},{"$f":"'ANEXO MULTISEDE'!D13","v":0},{"$f":"'ANEXO MULTISEDE'!E13","v":0},{"$f":"'ANEXO MULTISEDE'!F13","v":0},{"$f":"'ANEXO MULTISEDE'!K13","v":0},{"$f":"'ANEXO MULTISEDE'!H13","v":0},{"$f":"'ANEXO MULTISEDE'!I13","v":0},{"$f":"'ANEXO MULTISEDE'!J13","v":0},{"$f":"'ANEXO MULTISEDE'!L13","v":0},{"$f":"'ANEXO MULTISEDE'!M13","v":0},null,{"$f":"'ANEXO MULTISEDE'!N13","v":0}]
[null,null,null,null,null,null,null,null,null,null,null,null,null,null,null,null,null,null,null,null,null,null,null,null,null,null,null,null,{"$f":"'ANEXO MULTISEDE'!B14","v":0},null,null,{"$f":"'ANEXO MULTISEDE'!C14","v":0},null,null,{"$f":"'ANEXO MULTISEDE'!G14","v":0},{"$f":"'ANEXO MULTISEDE'!D14","v":0},{"$f":"'ANEXO MULTISEDE'!E14","v":0},{"$f":"'ANEXO MULTISEDE'!F14","v":0},{"$f":"'ANEXO MULTISEDE'!K14","v":0},{"$f":"'ANEXO MULTISEDE'!H14","v":0},{"$f":"'ANEXO MULTISEDE'!I14","v":0},{"$f":"'ANEXO MULTISEDE'!J14","v":0},{"$f":"'ANEXO MULTISEDE'!L14","v":0},{"$f":"'ANEXO MULTISEDE'!M14","v":0},null,{"$f":"'ANEXO MULTISEDE'!N14","v":0}]
[null,null,null,null,null,null,null,null,null,null,null,null,null,null,null,null,null,null,null,null,null,null,null,null,null,null,null,null,{"$f":"'ANEXO MULTISEDE'!B15","v":0},null,null,{"$f":"'ANEXO MULTISEDE'!C15","v":0},null,null,{"$f":"'ANEXO MULTISEDE'!G15","v":0},{"$f":"'ANEXO MULTISEDE'!D15","v":0},{"$f":"'ANEXO MULTISEDE'!E15","v":0},{"$f":"'ANEXO MULTISEDE'!F15","v":0},{"$f":"'ANEXO MULTISEDE'!K15","v":0},{"$f":"'ANEXO MULTISEDE'!H15","v":0},{"$f":"'ANEXO MULTISEDE'!I15","v":0},{"$f":"'ANEXO MULTISEDE'!J15","v":0},{"$f":"'ANEXO MULTISEDE'!L15","v":0},{"$f":"'ANEXO MULTISEDE'!M15","v":0},null,{"$f":"'ANEXO MULTISEDE'!N15","v":0}]
[null,null,null,null,null,null,null,null,null,null,null,null,null,null,null,null,null,null,null,null,null,null,null,null,null,null,null,null,{"$f":"'ANEXO MULTISEDE'!B16","v":0},null,null,{"$f":"'ANEXO MULTISEDE'!C16","v":0},null,null,{"$f":"'ANEXO MULTISEDE'!G16","v":0},{"$f":"'ANEXO MULTISEDE'!D16","v":0},{"$f":"'ANEXO MULTISEDE'!E16","v":0},{"$f":"'ANEXO MULTISEDE'!F16","v":0},{"$f":"'ANEXO MULTISEDE'!K16","v":0},{"$f":"'ANEXO MULTISEDE'!H16","v":0},{"$f":"'ANEXO MULTISEDE'!I16","v":0},{"$f":"'ANEXO MULTISEDE'!J16","v":0},{"$f":"'ANEXO MULTISEDE'!L16","v":0},{"$f":"'ANEXO MULTISEDE'!M16","v":0},null,{"$f":"'ANEXO MULTISEDE'!N16","v":0}]
[null,null,null,null,null,null,null,null,null,null,null,null,null,null,null,null,null,null,null,null,null,null,null,null,null,null,null,null,{"$f":"'ANEXO MULTISEDE'!B17","v":0},null,null,{"$f":"'ANEXO MULTISEDE'!C17","v":0},null,null,{"$f":"'ANEXO MULTISEDE'!G17","v":0},{"$f":"'ANEXO MULTISEDE'!D17","v":0},{"$f":"'ANEXO MULTISEDE'!E17","v":0},{"$f":"'ANEXO MULTISEDE'!F17","v":0},{"$f":"'ANEXO MULTISEDE'!K17","v":0},{"$f":"'ANEXO MULTISEDE'!H17","v":0},{"$f":"'ANEXO MULTISEDE'!I17","v":0},{"$f":"'ANEXO MULTISEDE'!J17","v":0},{"$f":"'ANEXO MULTISEDE'!L17","v":0},{"$f":"'ANEXO MULTISEDE'!M17","v":0},null,{"$f":"'ANEXO MULTISEDE'!N17","v":0}]
[null,null,null,null,null,null,null,null,null,null,null,null,null,null,null,null,null,null,null,null,null,null,null,null,null,null,null,null,{"$f":"'ANEXO MULTISEDE'!B18","v":0},null,null,{"$f":"'ANEXO MULTISEDE'!C18","v":0},null,null,{"$f":"'ANEXO MULTISEDE'!G18","v":0},{"$f":"'ANEXO MULTISEDE'!D18","v":0},{"$f":"'ANEXO MULTISEDE'!E18","v":0},{"$f":"'ANEXO MULTISEDE'!F18","v":0},{"$f":"'ANEXO MULTISEDE'!K18","v":0},{"$f":"'ANEXO MULTISEDE'!H18","v":0},{"$f":"'ANEXO MULTISEDE'!I18","v":0},{"$f":"'ANEXO MULTISEDE'!J18","v":0},{"$f":"'ANEXO MULTISEDE'!L18","v":0},{"$f":"'ANEXO MULTISEDE'!M18","v":0},null,{"$f":"'ANEXO MULTISEDE'!N18","v":0}]
[null,null,null,null,null,null,null,null,null,null,null,null,null,null,null,null,null,null,null,null,null,null,null,null,null,null,null,null,{"$f":"'ANEXO MULTISEDE'!B19","v":0},null,null,{"$f":"'ANEXO MULTISEDE'!C19","v":0},null,null,{"$f":"'ANEXO MULTISEDE'!G19","v":0},{"$f":"'ANEXO MULTISEDE'!D19","v":0},{"$f":"'ANEXO MULTISEDE'!E19","v":0},{"$f":"'ANEXO MULTISEDE'!F19","v":0},{"$f":"'ANEXO MULTISEDE'!K19","v":0},{"$f":"'ANEXO MULTISEDE'!H19","v":0},{"$f":"'ANEXO MULTISEDE'!I19","v":0},{"$f":"'ANEXO MULTISEDE'!J19","v":0},{"$f":"'ANEXO MULTISEDE'!L19","v":0},{"$f":"'ANEXO MULTISEDE'!M19","v":0},null,{"$f":"'ANEXO MULTISEDE'!N19","v":0}]
[null,null,null,null,null,null,null,null,null,null,null,null,null,null,null,null,null,null,null,null,null,null,null,null,null,null,null,null,{"$f":"'ANEXO MULTISEDE'!B20","v":0},null,null,{"$f":"'ANEXO MULTISEDE'!C20","v":0},null,null,{"$f":"'ANEXO MULTISEDE'!G20","v":0},{"$f":"'ANEXO MULTISEDE'!D20","v":0},{"$f":"'ANEXO MULTISEDE'!E20","v":0},{"$f":"'ANEXO MULTISEDE'!F20","v":0},{"$f":"'ANEXO MULTISEDE'!K20","v":0},{"$f":"'ANEXO MULTISEDE'!H20","v":0},{"$f":"'ANEXO MULTISEDE'!I20","v":0},{"$f":"'ANEXO MULTISEDE'!J20","v":0},{"$f":"'ANEXO MULTISEDE'!L20","v":0},{"$f":"'ANEXO MULTISEDE'!M20","v":0},null,{"$f":"'ANEXO MULTISEDE'!N20","v":0}]
[null,null,null,null,null,null,null,null,null,null,null,null,null,null,null,null,null,null,null,null,null,null,null,null,null,null,null,null,{"$f":"'ANEXO MULTISEDE'!B21","v":0},null,null,{"$f":"'ANEXO MULTISEDE'!C21","v":0},null,null,{"$f":"'ANEXO MULTISEDE'!G21","v":0},{"$f":"'ANEXO MULTISEDE'!D21","v":0},{"$f":"'ANEXO MULTISEDE'!E21","v":0},{"$f":"'ANEXO MULTISEDE'!F21","v":0},{"$f":"'ANEXO MULTISEDE'!K21","v":0},{"$f":"'ANEXO MULTISEDE'!H21","v":0},{"$f":"'ANEXO MULTISEDE'!I21","v":0},{"$f":"'ANEXO MULTISEDE'!J21","v":0},{"$f":"'ANEXO MULTISEDE'!L21","v":0},{"$f":"'ANEXO MULTISEDE'!M21","v":0},null,{"$f":"'ANEXO MULTISEDE'!N21","v":0}]
[null,null,null,null,null,null,null,null,null,null,null,null,null,null,null,null,null,null,null,null,null,null,null,null,null,null,null,null,{"$f":"'ANEXO MULTISEDE'!B22","v":0},null,null,{"$f":"'ANEXO MULTISEDE'!C22","v":0},null,null,{"$f":"'ANEXO MULTISEDE'!G22","v":0},{"$f":"'ANEXO MULTISEDE'!D22","v":0},{"$f":"'ANEXO MULTISEDE'!E22","v":0},{"$f":"'ANEXO MULTISEDE'!F22","v":0},{"$f":"'ANEXO MULTISEDE'!K22","v":0},{"$f":"'ANEXO MULTISEDE'!H22","v":0},{"$f":"'ANEXO MULTISEDE'!I22","v":0},{"$f":"'ANEXO MULTISEDE'!J22","v":0},{"$f":"'ANEXO MULTISEDE'!L22","v":0},{"$f":"'ANEXO MULTISEDE'!M22","v":0},null,{"$f":"'ANEXO MULTISEDE'!N22","v":0}]
[null,null,null,null,null,null,null,null,null,null,null,null,null,null,null,null,null,null,null,null,null,null,null,null,null,null,null,null,{"$f":"'ANEXO MULTISEDE'!B23","v":0},null,null,{"$f":"'ANEXO MULTISEDE'!C23","v":0},null,null,{"$f":"'ANEXO MULTISEDE'!G23","v":0},{"$f":"'ANEXO MULTISEDE'!D23","v":0},{"$f":"'ANEXO MULTISEDE'!E23","v":0},{"$f":"'ANEXO MULTISEDE'!F23","v":0},{"$f":"'ANEXO MULTISEDE'!K23","v":0},{"$f":"'ANEXO MULTISEDE'!H23","v":0},{"$f":"'ANEXO MULTISEDE'!I23","v":0},{"$f":"'ANEXO MULTISEDE'!J23","v":0},{"$f":"'ANEXO MULTISEDE'!L23","v":0},{"$f":"'ANEXO MULTISEDE'!M23","v":0},null,{"$f":"'ANEXO MULTISEDE'!N23","v":0}]
[null,null,null,null,null,null,null,null,null,null,null,null,null,null,null,null,null,null,null,null,null,null,null,null,null,null,null,null,{"$f":"'ANEXO MULTISEDE'!B24","v":0},null,null,{"$f":"'ANEXO MULTISEDE'!C24","v":0},null,null,{"$f":"'ANEXO MULTISEDE'!G24","v":0},{"$f":"'ANEXO MULTISEDE'!D24","v":0},{"$f":"'ANEXO MULTISEDE'!E24","v":0},{"$f":"'ANEXO MULTISEDE'!F24","v":0},{"$f":"'ANEXO MULTISEDE'!K24","v":0},{"$f":"'ANEXO MULTISEDE'!H24","v":0},{"$f":"'ANEXO MULTISEDE'!I24","v":0},{"$f":"'ANEXO MULTISEDE'!J24","v":0},{"$f":"'ANEXO MULTISEDE'!L24","v":0},{"$f":"'ANEXO MULTISEDE'!M24","v":0},null,{"$f":"'ANEXO MULTISEDE'!N24","v":0}]
[null,null,null,null,null,null,null,null,null,null,null,null,null,null,null,null,null,null,null,null,null,null,null,null,null,null,null,null,{"$f":"'ANEXO MULTISEDE'!B25","v":0},null,null,{"$f":"'ANEXO MULTISEDE'!C25","v":0},null,null,{"$f":"'ANEXO MULTISEDE'!G25","v":0},{"$f":"'ANEXO MULTISEDE'!D25","v":0},{"$f":"'ANEXO MULTISEDE'!E25","v":0},{"$f":"'ANEXO MULTISEDE'!F25","v":0},{"$f":"'ANEXO MULTISEDE'!K25","v":0},{"$f":"'ANEXO MULTISEDE'!H25","v":0},{"$f":"'ANEXO MULTISEDE'!I25","v":0},{"$f":"'ANEXO MULTISEDE'!J25","v":0},{"$f":"'ANEXO MULTISEDE'!L25","v":0},{"$f":"'ANEXO MULTISEDE'!M25","v":0},null,{"$f":"'ANEXO MULTISEDE'!N25","v":0}]
[null,null,null,null,null,null,null,null,null,null,null,null,null,null,null,null,null,null,null,null,null,null,null,null,null,null,null,null,{"$f":"'ANEXO MULTISEDE'!B26","v":0},null,null,{"$f":"'ANEXO MULTISEDE'!C26","v":0},null,null,{"$f":"'ANEXO MULTISEDE'!G26","v":0},{"$f":"'ANEXO MULTISEDE'!D26","v":0},{"$f":"'ANEXO MULTISEDE'!E26","v":0},{"$f":"'ANEXO MULTISEDE'!F26","v":0},{"$f":"'ANEXO MULTISEDE'!K26","v":0},{"$f":"'ANEXO MULTISEDE'!H26","v":0},{"$f":"'ANEXO MULTISEDE'!I26","v":0},{"$f":"'ANEXO MULTISEDE'!J26","v":0},{"$f":"'ANEXO MULTISEDE'!L26","v":0},{"$f":"'ANEXO MULTISEDE'!M26","v":0},null,{"$f":"'ANEXO MULTISEDE'!N26","v":0}]
[null,null,null,null,null,null,null,null,null,null,null,null,null,null,null,null,null,null,null,null,null,null,null,null,null,null,null,null,{"$f":"'ANEXO MULTISEDE'!B27","v":0},null,null,{"$f":"'ANEXO MULTISEDE'!C27","v":0},null,null,{"$f":"'ANEXO MULTISEDE'!G27","v":0},{"$f":"'ANEXO MULTISEDE'!D27","v":0},{"$f":"'ANEXO MULTISEDE'!E27","v":0},{"$f":"'ANEXO MULTISEDE'!F27","v":0},{"$f":"'ANEXO MULTISEDE'!K27","v":0},{"$f":"'ANEXO MULTISEDE'!H27","v":0},{"$f":"'ANEXO MULTISEDE'!I27","v":0},{"$f":"'ANEXO MULTISEDE'!J27","v":0},{"$f":"'ANEXO MULTISEDE'!L27","v":0},{"$f":"'ANEXO MULTISEDE'!M27","v":0},null,{"$f":"'ANEXO MULTISEDE'!N27","v":0}]
[null,null,null,null,null,null,null,null,null,null,null,null,null,null,null,null,null,null,null,null,null,null,null,null,null,null,null,null,{"$f":"'ANEXO MULTISEDE'!B28","v":0},null,null,{"$f":"'ANEXO MULTISEDE'!C28","v":0},null,null,{"$f":"'ANEXO MULTISEDE'!G28","v":0},{"$f":"'ANEXO MULTISEDE'!D28","v":0},{"$f":"'ANEXO MULTISEDE'!E28","v":0},{"$f":"'ANEXO MULTISEDE'!F28","v":0},{"$f":"'ANEXO MULTISEDE'!K28","v":0},{"$f":"'ANEXO MULTISEDE'!H28","v":0},{"$f":"'ANEXO MULTISEDE'!I28","v":0},{"$f":"'ANEXO MULTISEDE'!J28","v":0},{"$f":"'ANEXO MULTISEDE'!L28","v":0},{"$f":"'ANEXO MULTISEDE'!M28","v":0},null,{"$f":"'ANEXO MULTISEDE'!N28","v":0}]
[null,null,null,null,null,null,null,null,null,null,null,null,null,null,null,null,null,null,null,null,null,null,null,null,null,null,null,null,{"$f":"'ANEXO MULTISEDE'!B29","v":0},null,null,{"$f":"'ANEXO MULTISEDE'!C29","v":0},null,null,{"$f":"'ANEXO MULTISEDE'!G29","v":0},{"$f":"'ANEXO MULTISEDE'!D29","v":0},{"$f":"'ANEXO MULTISEDE'!E29","v":0},{"$f":"'ANEXO MULTISEDE'!F29","v":0},{"$f":"'ANEXO MULTISEDE'!K29","v":0},{"$f":"'ANEXO MULTISEDE'!H29","v":0},{"$f":"'ANEXO MULTISEDE'!I29","v":0},{"$f":"'ANEXO MULTISEDE'!J29","v":0},{"$f":"'ANEXO MULTISEDE'!L29","v":0},{"$f":"'ANEXO MULTISEDE'!M29","v":0},null,{"$f":"'ANEXO MULTISEDE'!N29","v":0}]
[null,null,null,null,null,null,null,null,null,null,null,null,null,null,null,null,null,null,null,null,null,null,null,null,null,null,null,null,{"$f":"'ANEXO MULTISEDE'!B30","v":0},null,null,{"$f":"'ANEXO MULTISEDE'!C30","v":0},null,null,{"$f":"'ANEXO MULTISEDE'!G30","v":0},{"$f":"'ANEXO MULTISEDE'!D30","v":0},{"$f":"'ANEXO MULTISEDE'!E30","v":0},{"$f":"'ANEXO MULTISEDE'!F30","v":0},{"$f":"'ANEXO MULTISEDE'!K30","v":0},{"$f":"'ANEXO MULTISEDE'!H30","v":0},{"$f":"'ANEXO MULTISEDE'!I30","v":0},{"$f":"'ANEXO MULTISEDE'!J30","v":0},{"$f":"'ANEXO MULTISEDE'!L30","v":0},{"$f":"'ANEXO MULTISEDE'!M30","v":0},null,{"$f":"'ANEXO MULTISEDE'!N30","v":0}]
[null,null,null,null,null,null,null,null,null,null,null,null,null,null,null,null,null,null,null,null,null,null,null,null,null,null,null,null,{"$f":"'ANEXO MULTISEDE'!B31","v":0},null,null,{"$f":"'ANEXO MULTISEDE'!C7","v":0},null,null,{"$f":"'ANEXO MULTISEDE'!G7","v":0},{"$f":"'ANEXO MULTISEDE'!D7","v":0},{"$f":"'ANEXO MULTISEDE'!E7","v":0},{"$f":"'ANEXO MULTISEDE'!F7","v":0},{"$f":"'ANEXO MULTISEDE'!K7","v":0},{"$f":"'ANEXO MULTISEDE'!H7","v":0},{"$f":"'ANEXO MULTISEDE'!I7","v":0},{"$f":"'ANEXO MULTISEDE'!J7","v":0},{"$f":"'ANEXO MULTISEDE'!L7","v":0},{"$f":"'ANEXO MULTISEDE'!M7","v":0},null,{"$f":"'ANEXO MULTISEDE'!N7","v":0}]
[null,null,null,null,null,null,null,null,null,null,null,null,null,null,null,null,null,null,null,null,null,null,null,null,null,null,null,null,{"$f":"'ANEXO MULTISEDE'!B31","v":0},null,null,{"$f":"'ANEXO MULTISEDE'!C31","v":0},null,null,{"$f":"'ANEXO MULTISEDE'!G31","v":0},{"$f":"'ANEXO MULTISEDE'!D31","v":0},{"$f":"'ANEXO MULTISEDE'!E31","v":0},{"$f":"'ANEXO MULTISEDE'!F31","v":0},{"$f":"'ANEXO MULTISEDE'!K31","v":0},{"$f":"'ANEXO MULTISEDE'!H31","v":0},{"$f":"'ANEXO MULTISEDE'!I31","v":0},{"$f":"'ANEXO MULTISEDE'!J31","v":0},{"$f":"'ANEXO MULTISEDE'!L31","v":0},{"$f":"'ANEXO MULTISEDE'!M31","v":0},null,{"$f":"'ANEXO MULTISEDE'!N31","v":0}]
[null,null,null,null,null,null,null,null,null,null,null,null,null,null,null,null,null,null,null,null,null,null,null,null,null,null,null,null,{"$f":"'ANEXO MULTISEDE'!B32","v":0},null,null,{"$f":"'ANEXO MULTISEDE'!C32","v":0},null,null,{"$f":"'ANEXO MULTISEDE'!G32","v":0},{"$f":"'ANEXO MULTISEDE'!D32","v":0},{"$f":"'ANEXO MULTISEDE'!E32","v":0},{"$f":"'ANEXO MULTISEDE'!F32","v":0},{"$f":"'ANEXO MULTISEDE'!K32","v":0},{"$f":"'ANEXO MULTISEDE'!H32","v":0},{"$f":"'ANEXO MULTISEDE'!I32","v":0},{"$f":"'ANEXO MULTISEDE'!J32","v":0},{"$f":"'ANEXO MULTISEDE'!L32","v":0},{"$f":"'ANEXO MULTISEDE'!M32","v":0},null,{"$f":"'ANEXO MULTISEDE'!N32","v":0}]
[null,null,null,null,null,null,null,null,null,null,null,null,null,null,null,null,null,null,null,null,null,null,null,null,null,null,null,null,{"$f":"'ANEXO MULTISEDE'!B33","v":0},null,null,{"$f":"'ANEXO MULTISEDE'!C33","v":0},null,null,{"$f":"'ANEXO MULTISEDE'!G33","v":0},{"$f":"'ANEXO MULTISEDE'!D33","v":0},{"$f":"'ANEXO MULTISEDE'!E33","v":0},{"$f":"'ANEXO MULTISEDE'!F33","v":0},{"$f":"'ANEXO MULTISEDE'!K33","v":0},{"$f":"'ANEXO MULTISEDE'!H33","v":0},{"$f":"'ANEXO MULTISEDE'!I33","v":0},{"$f":"'ANEXO MULTISEDE'!J33","v":0},{"$f":"'ANEXO MULTISEDE'!L33","v":0},{"$f":"'ANEXO MULTISEDE'!M33","v":0},null,{"$f":"'ANEXO MULTISEDE'!N33","v":0}]
[null,null,null,null,null,null,null,null,null,null,null,null,null,null,null,null,null,null,null,null,null,null,null,null,null,null,null,null,{"$f":"'ANEXO MULTISEDE'!B34","v":0},null,null,{"$f":"'ANEXO MULTISEDE'!C34","v":0},null,null,{"$f":"'ANEXO MULTISEDE'!G34","v":0},{"$f":"'ANEXO MULTISEDE'!D34","v":0},{"$f":"'ANEXO MULTISEDE'!E34","v":0},{"$f":"'ANEXO MULTISEDE'!F34","v":0},{"$f":"'ANEXO MULTISEDE'!K34","v":0},{"$f":"'ANEXO MULTISEDE'!H34","v":0},{"$f":"'ANEXO MULTISEDE'!I34","v":0},{"$f":"'ANEXO MULTISEDE'!J34","v":0},{"$f":"'ANEXO MULTISEDE'!L34","v":0},{"$f":"'ANEXO MULTISEDE'!M34","v":0},null,{"$f":"'ANEXO MULTISEDE'!N34","v":0}]